bitfinex/quotes_ETHUSD_20240710
["timestamp","ask_amount","ask_price","bid_price","bid_amount"]
[1720612873468,3.21978,3105.8,3105.3,2.23619418]
[1720612873647,3.21978,3105.8,3105.3,1.11590243]
[1720612874129,6.43884,3106.2,3105.3,1.11590243]
[1720612874333,6.43882,3106.2,3105.6,3.21996]
[1720612874560,6.43882,3106.2,3105.7,0.55]
[1720612875085,6.43905,3106.1,3105.3,3.22025]
[1720612875372,3.21974,3105.9,3105.2,6.28922369]
[1720612875610,3.21974,3105.9,3105.3,3.35072197]
[1720612875872,3.21983,3105.8,3105.4,1.12028879]
[1720612876088,0.06438826,3106.2,3105.2,2.39686432]
[1720612876255,3.22,3105.6,3105.2,2.39686432]
[1720612877142,3.22011,3105.5,3105.2,2.39686432]
[1720612877330,3.2203,3105.3,3105.2,2.39686432]
[1720612879663,6.4406,3105.3,3105.2,2.39686432]
[1720612882666,2.35,3105.9,3105.2,2.39686432]
[1720612882890,6.43991,3105.7,3105.2,2.63655075]
[1720612883098,3.21995,3105.7,3105.2,2.63655075]
[1720612883239,3.21995,3105.7,3105.3,0.06418748]
[1720612883437,3.22002,3105.6,3105.2,2.63655075]
[1720612883695,3.21973,3105.9,3105.3,0.56008255]
[1720612884286,3.2198,3105.8,3105.3,0.56008255]
[1720612884950,6.43967,3105.8,3105.3,0.56008255]
[1720612885270,3.21989,3105.7,3105.3,0.56008255]
[1720612885593,3.21989,3105.7,3105.3,0.06418748]
[1720612885948,3.21989,3105.7,3105.2,2.63655075]
[1720612886164,3.21989,3105.7,3105.4,0.06404579]
[1720612886344,3.21989,3105.7,3105.3,0.61404764]
[1720612887046,3.21963,3106.0,3105.3,0.61404764]
[1720612887247,3.21963,3106.0,3105.4,0.3010912]
[1720612887567,3.21963,3106.0,3105.5,0.06404902]
[1720612887740,3.21943,3106.2,3105.5,3.28411902]
[1720612887944,3.21943,3106.2,3105.6,0.55]
[1720612888250,3.21943,3106.2,3105.7,0.3834059]
[1720612888398,3.21943,3106.2,3105.7,0.44744868]
[1720612888855,3.21943,3106.2,3105.7,2.88894868]
[1720612890156,5.67898,3106.6,3105.7,6.10881868]
[1720612890498,5.67898,3106.6,3105.7,9.39302908]
[1720612890499,3.21909,3106.5,3105.7,9.39302908]
[1720612890653,3.21886,3106.7,3106.0,3.21957]
[1720612890858,3.21886,3106.7,3106.1,0.06377099]
[1720612892322,3.21896,3106.6,3106.1,0.06377099]
[1720612893218,3.21884,3106.8,3106.1,0.06377099]
[1720612893373,0.06438826,3106.7,3106.1,0.06377099]
[1720612893572,3.21925,3106.4,3106.1,0.06377099]
[1720612893771,3.21925,3106.4,3105.8,3.21978]
[1720612894005,3.21922,3106.4,3106.2,0.06367766]
[1720612894202,3.21922,3106.4,3105.8,3.21978]
[1720612894505,3.21922,3106.4,3105.9,0.55]
[1720612894691,3.21922,3106.4,3105.9,0.61370354]
[1720612894893,3.219,3106.6,3105.9,3.83337354]
[1720612895100,3.219,3106.6,3106.0,3.86750617]
[1720612895273,6.43802,3106.6,3106.0,3.86750617]
[1720612895794,3.21906,3106.5,3106.1,0.06369984]
[1720612896579,3.21906,3106.5,3105.9,3.76967]
[1720612896778,3.21906,3106.5,3106.2,0.06369799]
[1720612897093,3.21906,3106.5,3106.3,0.06368597]
[1720612897296,3.21906,3106.5,3105.9,6.98929]
[1720612897610,3.21906,3106.5,3106.0,0.76262307]
[1720612898296,3.21906,3106.5,3106.0,3.98218307]
[1720612899508,3.21881,3106.8,3106.0,4.04656812]
[1720612899914,3.21896,3106.6,3106.0,4.04656812]
[1720612900211,3.21838,3107.2,3106.5,3.21901]
[1720612900411,3.21838,3107.2,3106.6,4.090781]
[1720612900611,2.346,3107.6,3106.7,3.21877]
[1720612900612,3.218,3107.6,3106.7,3.21877]
[1720612900812,0.50490233,3107.7,3107.0,3.21847]
[1720612901111,3.21776,3107.8,3107.2,3.21832]
[1720612901282,3.21782,3107.7,3107.1,6.50019265]
[1720612901482,3.21782,3107.7,3107.2,0.55]
[1720612901811,3.21782,3107.7,3107.3,0.06344895]
[1720612903612,3.21773,3107.8,3107.3,0.06344895]
[1720612903810,6.43552,3107.8,3107.3,0.06344895]
[1720612904312,3.21773,3107.8,3107.3,0.06344895]
[1720612906094,3.21783,3107.7,3107.3,0.06344895]
[1720612908123,3.21756,3108.0,3107.3,0.06344895]
[1720612908324,3.21756,3108.0,3107.4,0.3831769]
[1720612908625,6.43513,3108.0,3107.4,0.3831769]
[1720612908837,6.43513,3108.0,3107.5,0.06330808]
[1720612909135,3.2176,3107.9,3107.5,0.06330808]
[1720612909437,3.2175,3108.0,3107.5,0.06330808]
[1720612909630,3.2175,3108.0,3107.5,0.75802933]
[1720612909931,0.643356,3108.6,3107.2,0.55]
[1720612910135,3.21916,3106.4,3106.3,2.39686432]
[1720612910430,3.21892,3106.7,3106.3,2.39686432]
[1720612910597,3.21912,3106.5,3106.3,2.39686432]
[1720612910797,3.21916,3106.4,3106.3,2.39686432]
[1720612912327,7.082148,3106.4,3106.3,2.39686432]
[1720612912529,3.21961,3106.0,3105.8,7.47]
[1720612913105,3.21967,3105.9,3105.3,19.63]
[1720612913428,3.21999,3105.6,3105.2,2.39686432]
[1720612913628,3.21999,3105.6,3105.3,0.23968643]
[1720612913943,3.21983,3105.8,3105.3,0.23968643]
[1720612917142,3.2199,3105.7,3105.3,0.23968643]
[1720612917602,3.2199,3105.7,3105.4,0.04480298]
[1720612921212,3.21849,3107.1,3105.9,3.21962]
[1720612921412,2.4583,3107.3,3106.1,2.582]
[1720612921618,3.21884,3106.7,3106.2,0.55]
[1720612921915,3.21884,3106.7,3106.2,0.59525433]
[1720612924656,3.21871,3106.9,3106.2,0.59525433]
[1720612924858,3.21834,3107.2,3106.3,2.4092]
[1720612925160,2.4583,3107.3,3106.3,2.4092]
[1720612925161,3.21819,3107.4,3106.5,3.21902]
[1720612925459,3.21795,3107.6,3106.6,3.83325175]
[1720612925665,3.21795,3107.6,3106.6,3.87878743]
[1720612925837,3.21807,3107.5,3106.7,3.21884]
[1720612926037,3.21807,3107.5,3106.7,3.28320987]
[1720612926364,3.21795,3107.6,3106.8,0.10984611]
[1720612926775,3.21806,3107.5,3106.8,0.10984611]
[1720612926930,3.21792,3107.6,3106.8,0.10984611]
[1720612927474,3.861488,3107.6,3106.8,0.10984611]
[1720612927769,0.32175,3107.9,3107.0,2.424]
[1720612927770,3.21777,3107.8,3107.0,2.424]
[1720612927930,3.21777,3107.8,3107.1,0.6143605]
[1720612928133,0.32175,3107.9,3107.2,0.04538524]
[1720612928364,0.32175,3107.9,3107.2,3.26371524]
[1720612928546,3.21735,3108.2,3107.3,3.83257817]
[1720612928747,3.21735,3108.2,3107.4,0.04534608]
[1720612928956,3.21745,3108.1,3107.4,0.04534608]
[1720612929430,3.21735,3108.2,3107.4,3.26340608]
[1720612929735,3.21713,3108.4,3107.6,3.21786]
[1720612929954,3.21725,3108.3,3107.7,0.04534053]
[1720612930288,3.9248726,3108.4,3107.7,0.59534053]
[1720612930442,7.1420426,3108.4,3107.7,0.59534053]
[1720612930837,3.9248726,3108.4,3107.7,0.65969027]
[1720612931536,7.1420626,3108.4,3107.7,0.65969027]
[1720612931754,0.71420626,3108.3,3107.7,0.65969027]
[1720612931952,0.71420626,3108.3,3107.7,0.59534053]
[1720612932235,3.93141626,3108.3,3107.7,0.59534053]
[1720612933247,0.71420626,3108.3,3107.7,0.04534053]
[1720612933468,6.43535,3107.9,3107.7,0.04534053]
[1720612933771,6.43535,3107.9,3107.3,2.39686432]
[1720612933772,3.21766,3107.9,3107.8,0.04461423]
[1720612933960,7.08529883,3107.9,3107.3,2.39686432]
[1720612934155,6.43535,3107.9,3107.4,0.04462416]
[1720612934539,3.21773,3107.8,3107.4,0.04462416]
[1720612934973,3.21762,3107.9,3107.4,0.04462416]
[1720612936085,6.4353,3107.9,3107.4,0.04462416]
[1720612936534,3.21773,3107.8,3107.4,0.04462416]
[1720612937544,3.21792,3107.6,3107.4,0.04462416]
[1720612943496,3.2178,3107.8,3107.4,0.04462416]
[1720612943647,3.21766,3107.9,3107.4,0.04462416]
[1720612944264,3.21771,3107.8,3107.4,0.04462416]
[1720612944789,3.21751,3108.0,3107.4,0.04462416]
[1720612945083,6.4351,3108.0,3107.4,0.04462416]
[1720612945286,3.21764,3107.9,3107.4,0.04462416]
[1720612947372,3.21774,3107.8,3107.4,0.04462416]
[1720612951549,3.21792,3107.6,3107.4,0.04462416]
[1720612955243,6.4359,3107.6,3107.4,0.04462416]
[1720612955428,3.21792,3107.6,3107.4,0.04462416]
[1720612959354,6.43556,3107.8,3107.4,0.04462416]
[1720612959651,3.21777,3107.8,3107.4,0.04462416]
[1720612960722,3.21736,3108.2,3107.5,2.2708]
[1720612960957,3.21741,3108.1,3107.6,0.587824]
[1720612964414,3.21709,3108.4,3107.7,0.0643522]
[1720612964643,3.21698,3108.5,3107.8,3.76762]
[1720612964813,3.21698,3108.5,3107.9,0.06434427]
[1720612965030,3.21698,3108.5,3108.0,0.55]
[1720612965232,3.21698,3108.5,3108.0,0.58769]
[1720612965452,3.21698,3108.5,3108.0,0.03769]
[1720612967718,3.21698,3108.5,3108.1,2.3536]
[1720612967917,3.21698,3108.5,3108.2,0.03761037]
[1720612970522,3.21688,3108.6,3108.2,0.03761037]
[1720612971288,3.21699,3108.5,3108.2,0.03761037]
[1720612971659,3.21699,3108.5,3107.9,0.55]
[1720612971892,3.21699,3108.5,3108.3,0.03758321]
[1720612972099,3.21699,3108.5,3107.9,0.55]
[1720612972256,3.21699,3108.5,3108.4,0.03758136]
[1720612972455,3.21699,3108.5,3107.9,0.55]
[1720612972985,3.21709,3108.4,3108.0,0.03759128]
[1720612974706,3.21709,3108.4,3108.2,1.075]
[1720612975063,3.21709,3108.4,3108.3,0.03759333]
[1720612975505,3.21709,3108.4,3108.2,1.075]
[1720612975807,3.21709,3108.4,3108.3,0.03748956]
[1720612976166,3.21709,3108.4,3108.2,1.075]
[1720612976366,3.21709,3108.4,3108.3,0.03748956]
[1720612976562,6.43425,3108.4,3108.2,1.075]
[1720612976767,6.43425,3108.4,3108.3,0.03748956]
[1720612976983,6.43425,3108.4,3108.2,1.075]
[1720612977185,3.21709,3108.4,3108.3,0.03748956]
[1720612977507,6.43425,3108.4,3108.2,1.075]
[1720612977694,3.21709,3108.4,3108.3,0.03748956]
[1720612978079,3.21709,3108.4,3108.2,1.075]
[1720612978485,3.21709,3108.4,3108.3,0.03748956]
[1720612978893,3.21709,3108.4,3108.2,1.075]
[1720612979101,3.21709,3108.4,3108.3,0.03748956]
[1720612979407,3.21709,3108.4,3108.2,1.075]
[1720612979769,3.21709,3108.4,3108.3,0.03748956]
[1720612979968,3.21709,3108.4,3108.2,1.075]
[1720612980213,3.21709,3108.4,3108.3,0.03748956]
[1720612980411,9.474258,3108.4,3108.3,0.03748956]
[1720612980709,3.2174,3108.1,3107.7,7.47]
[1720612980923,3.2174,3108.1,3108.0,1.075]
[1720612982605,6.43448,3108.3,3108.0,1.075]
[1720612982772,6.43448,3108.3,3108.2,1.075]
[1720612985914,3.2172,3108.3,3108.2,1.075]
[1720612986889,2.3444,3108.2,3107.7,7.47]
[1720612987089,2.3444,3108.2,3106.9,1.68402473]
[1720612987090,1.075,3107.8,3106.9,8.14360989]
[1720612987389,3.21824,3107.3,3106.9,1.075]
[1720612987596,5.56215,3107.8,3107.2,1.075]
[1720612987775,3.21754,3108.0,3107.4,1.075]
[1720612987971,3.21747,3108.1,3107.9,1.075]
[1720612988221,3.21751,3108.0,3107.7,1.075]
[1720612988570,3.21751,3108.0,3107.8,0.03031803]
[1720612988777,3.21751,3108.0,3107.7,1.075]
[1720612988976,3.21751,3108.0,3107.8,0.03031803]
[1720612989216,3.21751,3108.0,3107.7,1.075]
[1720612989377,3.21751,3108.0,3107.8,0.03031803]
[1720612989573,3.21751,3108.0,3107.7,1.075]
[1720612989774,3.21751,3108.0,3107.8,0.03031803]
[1720612990032,3.21751,3108.0,3107.4,7.47]
[1720612990033,3.2176,3107.9,3107.6,1.075]
[1720612990727,3.21751,3108.0,3107.6,1.075]
[1720612990728,3.21771,3107.8,3107.6,1.075]
[1720612992130,6.4351,3108.0,3107.6,1.075]
[1720612992835,3.21761,3107.9,3107.6,1.075]
[1720612993962,3.21761,3107.9,3107.4,7.47]
[1720612994306,3.21761,3107.9,3107.5,1.075]
[1720612994922,3.21771,3107.8,3107.5,1.075]
[1720612995420,3.21751,3108.0,3107.7,1.075]
[1720612998657,6.43511,3108.0,3107.7,1.075]
[1720612999023,3.21763,3107.9,3107.7,1.075]
[1720612999711,3.21763,3107.9,3107.6,0.55]
[1720613001279,3.21773,3107.8,3107.6,0.55]
[1720613003578,3.21773,3107.8,3107.7,0.0293563]
[1720613005205,3.21763,3107.9,3107.7,1.35524193]
[1720613005567,3.21763,3107.9,3107.7,3.79414193]
[1720613006687,3.21771,3107.8,3107.7,0.0293563]
[1720613010917,6.43542,3107.8,3107.7,0.0293563]
[1720613011271,3.21798,3107.6,3107.4,8.545]
[1720613011661,6.43598,3107.6,3107.4,8.545]
[1720613013473,6.43598,3107.6,3107.4,9.3995]
[1720613014172,3.21802,3107.5,3107.4,9.3995]
[1720613014403,3.21802,3107.5,3107.4,9.9495]
[1720613014716,6.43604,3107.5,3107.4,7.47]
[1720613017108,3.21822,3107.3,3107.2,1.075]
[1720613017314,6.43644,3107.3,3107.2,1.075]
[1720613017468,3.21822,3107.3,3107.0,1.075]
[1720613017916,3.21842,3107.2,3107.0,1.075]
[1720613018135,6.43706,3107.0,3106.9,7.47]
[1720613019205,2.4105,3107.2,3106.3,3.07075105]
[1720613019206,3.2188,3106.8,3106.3,3.07075105]
[1720613019417,3.21903,3106.6,3106.4,1.075]
[1720613019615,6.43806,3106.6,3106.4,1.075]
[1720613019913,3.21903,3106.6,3106.4,1.075]
[1720613020143,3.21902,3106.6,3106.4,1.075]
[1720613020346,6.43805,3106.6,3106.3,2.39686432]
[1720613020838,6.43805,3106.6,3106.4,1.075]
[1720613021200,3.21902,3106.6,3106.4,1.075]
[1720613021596,3.21859,3107.0,3106.4,1.42218643]
[1720613021842,3.21819,3107.4,3106.9,1.075]
[1720613022053,5.62947,3107.6,3107.3,1.075]
[1720613022054,3.21797,3107.6,3107.3,1.075]
[1720613022217,3.21802,3107.5,3107.3,1.075]
[1720613023300,3.21784,3107.7,3107.3,1.075]
[1720613023502,3.21798,3107.6,3107.3,1.075]
[1720613024456,3.21779,3107.8,3107.3,1.075]
[1720613024752,3.21779,3107.8,3107.7,1.075]
[1720613025737,3.21747,3108.1,3107.7,1.075]
[1720613026543,3.21762,3107.9,3107.7,1.075]
[1720613026841,3.21753,3108.0,3107.7,1.075]
[1720613028301,3.21747,3108.1,3107.9,1.075]
[1720613028609,3.2171,3108.4,3107.9,1.075]
[1720613028796,3.2171,3108.4,3108.2,1.075]
[1720613029309,3.2171,3108.4,3108.0,2.2783]
[1720613029518,3.2171,3108.4,3108.2,1.075]
[1720613032035,6.43386,3108.6,3108.2,1.075]
[1720613032244,3.21689,3108.6,3108.2,1.075]
[1720613032441,2.3678,3109.2,3108.2,1.075]
[1720613032741,3.21698,3108.5,3108.2,1.075]
[1720613034712,3.2171,3108.4,3108.2,1.075]
[1720613035042,3.2171,3108.4,3108.0,1.075]
[1720613035249,3.2171,3108.4,3108.1,0.55]
[1720613035414,0.643407,3108.4,3107.4,2.97172004]
[1720613035617,0.06438826,3108.6,3107.7,1.075]
[1720613035618,3.21748,3108.1,3107.7,1.075]
[1720613035918,3.21748,3108.1,3107.4,2.2986]
[1720613035919,3.21753,3108.0,3107.6,1.075]
[1720613036106,3.21753,3108.0,3107.4,2.2986]
[1720613036314,3.21761,3107.9,3107.4,2.2986]
[1720613036553,3.21761,3107.9,3107.6,1.075]
[1720613036848,3.21728,3108.3,3107.6,1.075]
[1720613037049,5.52115,3108.4,3107.8,1.075]
[1720613037343,3.21715,3108.4,3107.8,1.075]
[1720613037647,3.21715,3108.4,3107.9,0.55]
[1720613037833,3.21719,3108.3,3107.9,0.55]
[1720613043129,3.21715,3108.4,3108.0,1.075]
[1720613045469,3.2172,3108.3,3108.0,1.075]
[1720613046887,3.21739,3108.1,3107.5,3.60376721]
[1720613047089,3.21739,3108.1,3107.6,1.075]
[1720613047379,3.21764,3107.9,3107.6,1.4825]
[1720613047586,3.21774,3107.8,3107.6,1.075]
[1720613050185,3.21774,3107.8,3107.3,9.86686432]
[1720613050386,3.21774,3107.8,3107.6,1.075]
[1720613052505,6.43551,3107.8,3107.4,1.625]
[1720613052703,3.21774,3107.8,3107.4,1.625]
[1720613053205,3.21774,3107.8,3107.6,1.075]
[1720613053510,6.43516,3108.0,3107.6,1.075]
[1720613053813,3.21762,3107.9,3107.8,1.075]
[1720613054012,3.21757,3108.0,3107.8,1.075]
[1720613054412,6.43516,3108.0,3107.8,1.075]
[1720613054603,3.21757,3108.0,3107.8,1.075]
[1720613055500,6.43516,3108.0,3107.8,1.075]
[1720613055705,3.21757,3108.0,3107.8,1.075]
[1720613056037,3.2176,3107.9,3107.8,1.075]
[1720613056180,3.2176,3107.9,3107.6,1.075]
[1720613056530,3.21771,3107.8,3107.6,1.075]
[1720613056976,3.21771,3107.8,3107.4,2.02718643]
[1720613062034,6.43551,3107.8,3107.4,2.02718643]
[1720613063540,3.21771,3107.8,3107.4,2.02718643]
[1720613064038,6.4355,3107.8,3107.4,2.02718643]
[1720613064735,3.21781,3107.7,3107.4,2.02718643]
[1720613065242,3.21781,3107.7,3107.4,1.075]
[1720613065412,2.4647,3108.0,3107.3,2.39686432]
[1720613065413,3.21812,3107.4,3107.3,2.39686432]
[1720613065613,6.43624,3107.4,3107.3,2.39686432]
[1720613070006,3.21823,3107.3,3107.0,7.47]
[1720613070210,3.21843,3107.1,3107.0,7.47]
[1720613070742,3.21843,3107.1,3106.7,1.075]
[1720613070951,3.21855,3107.0,3106.5,7.47]
[1720613071160,3.21866,3106.9,3106.6,0.78171864]
[1720613074815,3.21866,3106.9,3106.7,1.075]
[1720613077261,3.21856,3107.0,3106.7,1.075]
[1720613079407,3.2183,3107.3,3106.7,1.075]
[1720613079408,2.2669,3107.6,3106.9,1.075]
[1720613079553,3.21781,3107.7,3107.4,1.075]
[1720613079750,2.2669,3107.9,3107.6,1.075]
[1720613079751,3.21765,3107.9,3107.6,1.075]
[1720613081188,3.21765,3107.9,3107.4,1.075]
[1720613081887,5.47535,3108.2,3107.4,1.075]
[1720613082183,5.47535,3108.2,3107.4,2.059314]
[1720613082184,3.21757,3108.0,3107.4,2.059314]
[1720613082387,3.21763,3107.9,3107.4,2.059314]
[1720613083683,3.2174,3108.1,3107.4,2.059314]
[1720613084285,3.21755,3108.0,3107.4,2.059314]
[1720613084456,3.21755,3108.0,3107.5,0.53418688]
[1720613084786,3.21705,3108.5,3107.9,1.075]
[1720613085095,3.21705,3108.5,3108.1,1.075]
[1720613085650,3.21683,3108.7,3108.1,1.1393452]
[1720613085860,3.21683,3108.7,3108.3,1.075]
[1720613086684,3.21683,3108.7,3108.1,1.1393452]
[1720613086852,3.21683,3108.7,3108.1,2.64377672]
[1720613087382,3.21683,3108.7,3108.1,2.57943152]
[1720613090079,6.43368,3108.7,3108.1,2.57943152]
[1720613090294,6.43368,3108.7,3108.0,3.21746]
[1720613091672,3.21683,3108.7,3108.0,3.21746]
[1720613092967,6.43367,3108.7,3108.0,3.21746]
[1720613093160,3.21683,3108.7,3108.1,1.075]
[1720613097522,3.21683,3108.7,3108.1,4.29238]
[1720613097716,3.21683,3108.7,3108.1,5.790361]
[1720613100424,6.43367,3108.7,3108.1,1.497981]
[1720613100595,3.21689,3108.6,3108.0,4.29249]
[1720613101312,3.21683,3108.7,3108.0,7.50993]
[1720613101535,3.21683,3108.7,3108.2,1.075]
[1720613102018,5.6295,3108.8,3108.2,1.075]
[1720613102321,5.6295,3108.8,3108.2,1.40555761]
[1720613102685,2.4128,3108.8,3108.2,4.62284761]
[1720613102887,3.21646,3109.0,3108.4,1.075]
[1720613103613,3.21646,3109.0,3108.4,4.29207]
[1720613104993,6.433,3109.0,3108.4,4.29207]
[1720613105927,6.433,3109.0,3108.4,1.075]
[1720613106713,3.21659,3108.9,3108.4,1.075]
[1720613106896,3.21659,3108.9,3108.4,2.09950376]
[1720613113935,3.21647,3109.0,3108.4,2.09950376]
[1720613117914,3.21658,3108.9,3108.2,0.33055761]
[1720613118108,3.21658,3108.9,3108.1,4.29239]
[1720613118109,3.2168,3108.7,3108.1,4.29239]
[1720613118835,3.2168,3108.7,3108.3,1.075]
[1720613120006,5.54452,3109.1,3108.3,4.29215]
[1720613120201,3.2165,3109.0,3108.5,1.075]
[1720613120441,3.21634,3109.2,3108.5,4.29192]
[1720613120733,3.21622,3109.3,3108.9,1.075]
[1720613120935,2.2574,3109.4,3108.9,1.075]
[1720613121302,3.21616,3109.3,3108.9,1.075]
[1720613121839,5.47347,3109.4,3108.9,1.075]
[1720613122001,3.21607,3109.4,3108.9,1.075]
[1720613122403,3.21617,3109.3,3108.7,1.075]
[1720613124813,3.21617,3109.3,3108.8,0.429176]
[1720613125648,3.21617,3109.3,3108.7,1.075]
[1720613125848,5.60836,3109.1,3108.4,6.056315]
[1720613126049,8.82481,3109.1,3108.5,1.075]
[1720613126449,3.21652,3109.0,3108.5,1.075]
[1720613128051,3.21634,3109.2,3108.7,1.075]
[1720613128456,3.21605,3109.4,3108.7,1.075]
[1720613128753,3.21605,3109.4,3108.9,1.075]
[1720613129252,6.43216,3109.4,3108.9,1.075]
[1720613129423,6.43216,3109.4,3108.7,4.720879]
[1720613130143,3.21616,3109.3,3108.8,2.2693]
[1720613130453,3.21616,3109.3,3108.9,1.075]
[1720613131629,6.43219,3109.4,3108.9,1.075]
[1720613131835,6.43219,3109.4,3109.0,0.14522022]
[1720613132558,3.21616,3109.3,3109.0,0.14522022]
[1720613133274,3.21616,3109.3,3108.7,4.720879]
[1720613133773,3.21616,3109.3,3108.8,0.14505714]
[1720613133973,3.21616,3109.3,3108.7,4.720879]
[1720613134174,3.21616,3109.3,3108.9,0.14505151]
[1720613134472,3.21616,3109.3,3108.7,4.720879]
[1720613134672,3.21616,3109.3,3109.0,0.14504588]
[1720613134978,3.21616,3109.3,3109.1,0.14504024]
[1720613135180,3.21616,3109.3,3108.7,4.720879]
[1720613135355,3.21616,3109.3,3109.2,0.14503461]
[1720613135540,3.21616,3109.3,3108.7,4.2917]
[1720613135744,3.21616,3109.3,3109.2,0.14503461]
[1720613136040,3.21616,3109.3,3108.7,4.2917]
[1720613136274,3.21616,3109.3,3109.2,0.14503461]
[1720613136487,3.21616,3109.3,3108.7,4.2917]
[1720613136771,3.21616,3109.3,3108.7,5.268128]
[1720613137079,3.21616,3109.3,3108.8,0.14505714]
[1720613137575,3.21616,3109.3,3108.9,0.14505151]
[1720613137748,3.21616,3109.3,3108.7,5.268128]
[1720613137938,3.21616,3109.3,3109.0,0.14504588]
[1720613138137,3.21616,3109.3,3108.7,5.268128]
[1720613138338,3.21616,3109.3,3109.1,0.14504024]
[1720613138585,3.21616,3109.3,3108.8,0.7523728]
[1720613138779,3.21616,3109.3,3109.2,0.14503461]
[1720613139111,3.21616,3109.3,3108.8,0.7523728]
[1720613139569,3.21616,3109.3,3108.9,0.14505151]
[1720613140249,3.21605,3109.4,3108.9,1.22005151]
[1720613140470,3.21579,3109.7,3109.1,3.4511]
[1720613140858,3.21579,3109.7,3109.2,0.14504977]
[1720613141477,3.21586,3109.6,3109.2,0.14504977]
[1720613141692,3.21586,3109.6,3109.2,0.87883986]
[1720613142773,3.21564,3109.8,3109.2,0.87883986]
[1720613142774,3.21575,3109.7,3109.2,0.87883986]
[1720613145060,5.69051,3109.9,3109.3,1.075]
[1720613145397,3.21566,3109.8,3109.4,0.14503851]
[1720613146867,3.21549,3110.0,3109.4,0.66204637]
[1720613147084,3.21533,3110.1,3109.6,1.075]
[1720613147400,5.70413,3110.2,3109.7,0.14488271]
[1720613147561,5.70413,3110.2,3109.8,1.075]
[1720613147757,5.70413,3110.2,3109.8,1.21987708]
[1720613148274,3.21523,3110.2,3109.8,1.21987708]
[1720613150080,3.21523,3110.2,3109.8,0.14487708]
[1720613150458,3.21523,3110.2,3109.6,6.57393]
[1720613150663,3.21523,3110.2,3109.9,0.14487145]
[1720613150859,3.21523,3110.2,3109.7,0.978979]
[1720613151086,3.21523,3110.2,3110.0,0.14293378]
[1720613151312,3.21523,3110.2,3109.7,0.978979]
[1720613151808,3.21523,3110.2,3109.8,0.14285927]
[1720613152008,3.21523,3110.2,3109.7,0.978979]
[1720613152221,3.21523,3110.2,3109.9,0.14285364]
[1720613152500,3.21523,3110.2,3109.8,0.89815017]
[1720613152714,8.92748,3110.4,3110.0,0.14284801]
[1720613153008,3.21519,3110.3,3110.1,0.14284238]
[1720613153213,3.21519,3110.3,3109.8,0.7552909]
[1720613153370,3.21519,3110.3,3110.2,0.14283675]
[1720613153571,3.21519,3110.3,3109.7,0.978979]
[1720613153773,3.21519,3110.3,3110.2,0.14283675]
[1720613154102,3.21519,3110.3,3109.7,0.978979]
[1720613154312,3.21519,3110.3,3110.2,0.14283675]
[1720613154492,3.21519,3110.3,3109.7,0.978979]
[1720613154697,3.21523,3110.2,3109.7,0.978979]
[1720613156522,3.21523,3110.2,3109.8,0.7552909]
[1720613157293,3.21523,3110.2,3109.8,1.8302909]
[1720613157728,6.4302,3110.4,3109.8,1.8302909]
[1720613158016,3.21516,3110.3,3109.8,1.8302909]
[1720613161026,3.21516,3110.3,3109.8,1.8302909]
[1720613161942,2.2782,3110.7,3109.8,1.8302909]
[1720613162221,8.21444,3111.0,3110.4,1.075]
[1720613162222,3.21456,3110.9,3110.4,1.075]
[1720613163534,5.0,3111.0,3110.6,1.075]
[1720613163684,5.0,3111.0,3110.8,1.075]
[1720613164285,5.0,3111.0,3110.9,3.2145]
[1720613164508,5.0,3111.0,3110.9,3.964903]
[1720613164716,5.0,3111.0,3110.9,0.750403]
[1720613166116,5.0,3111.0,3110.8,1.075]
[1720613166314,5.0,3111.0,3110.2,2.39686432]
[1720613166315,3.21461,3110.8,3110.2,2.39686432]
[1720613166492,5.64211,3110.8,3110.2,3.47186432]
[1720613168030,5.64211,3110.8,3110.4,1.075]
[1720613168329,3.21471,3110.7,3110.2,3.47186432]
[1720613168542,3.27909826,3110.7,3110.5,0.14138345]
[1720613168690,3.21471,3110.7,3110.2,3.47186432]
[1720613168888,3.21471,3110.7,3110.6,0.14137783]
[1720613169328,3.21471,3110.7,3110.2,3.47186432]
[1720613169527,3.21471,3110.7,3110.6,0.14137783]
[1720613169728,5.64211,3110.8,3110.2,3.47186432]
[1720613169892,5.64211,3110.8,3110.6,0.13883206]
[1720613170085,8.85678,3110.8,3110.4,1.075]
[1720613170300,8.85678,3110.8,3110.7,0.13882643]
[1720613170714,3.21506,3110.4,3110.2,2.39686432]
[1720613170914,3.21485,3110.6,3110.2,2.39686432]
[1720613171248,3.21485,3110.6,3110.3,0.13885395]
[1720613171442,3.21497,3110.5,3110.2,2.39686432]
[1720613171677,8.21446,3111.0,3110.4,0.13887589]
[1720613171816,8.21446,3111.0,3110.3,1.21388152]
[1720613172024,8.21446,3111.0,3110.5,0.13887027]
[1720613172217,3.21466,3110.8,3110.3,1.075]
[1720613172423,3.21466,3110.8,3110.6,0.13886464]
[1720613172623,3.21466,3110.8,3110.3,1.075]
[1720613172822,3.21466,3110.8,3110.7,0.13885901]
[1720613173039,8.21443,3111.0,3110.3,1.075]
[1720613173235,3.21458,3110.9,3110.3,1.075]
[1720613173536,5.0,3111.0,3110.5,1.075]
[1720613173931,5.0,3111.0,3110.6,0.13886464]
[1720613174107,8.21441,3111.0,3110.6,0.13886464]
[1720613175448,5.0,3111.0,3110.6,0.13886464]
[1720613176316,8.21441,3111.0,3110.6,0.13886464]
[1720613176738,8.21441,3111.0,3110.7,1.075]
[1720613176944,5.0,3111.0,3110.8,0.13885338]